bitfinex/quotes_SOLUSD_20260309
["timestamp","ask_amount","ask_price","bid_price","bid_amount"]
[1773053746427,0.49123982,83.737,83.712,0.47731843]
[1773053747728,0.49123982,83.745,83.72,4.3863144]
[1773053747907,0.49123982,83.745,83.721,0.47712561]
[1773053749232,0.49123982,83.745,83.722,11.94429182]
[1773053749931,0.49123982,83.745,83.703,0.47656035]
[1773053750230,0.49123982,83.719,83.69,4.3863144]
[1773053751637,0.49123982,83.717,83.691,11.94871611]
[1773053754128,0.49123982,83.717,83.69,4.3863144]
[1773053754830,0.49123982,83.724,83.7,4.3863144]
[1773053755709,12.43538897,83.723,83.7,4.3863144]
[1773053755925,11.94414915,83.723,83.7,4.3863144]
[1773053756234,0.49123982,83.722,83.7,4.3863144]
[1773053756813,0.49123982,83.722,83.701,11.94728856]
[1773053757022,0.49123982,83.729,83.702,0.47531515]
[1773053757316,0.49123982,83.729,83.71,4.3863144]
[1773053757825,0.49123982,83.735,83.711,0.47531515]
[1773053758420,11.94186699,83.739,83.711,0.47531515]
[1773053758627,0.49123982,83.738,83.711,0.47514535]
[1773053759032,0.49123982,83.738,83.712,12.42069614]
[1773053759939,0.49123982,83.738,83.713,0.47497749]
[1773053760944,4.3863144,83.75,83.686,11.94943001]
[1773053760945,4.3863144,83.72,83.686,11.94943001]
[1773053761132,0.49123982,83.719,83.691,0.47464754]
[1773053761640,0.49123982,83.719,83.7,4.3863144]
[1773053762226,0.49123982,83.719,83.691,0.47464754]
[1773053763142,0.49123982,83.719,83.692,42.29417338]
[1773053763357,0.49123982,83.719,83.7,4.3863144]
[1773053764144,4.3863144,83.74,83.701,0.47401007]
[1773053764349,0.4982452,83.737,83.711,0.47401007]
[1773053765150,0.4982452,83.737,83.712,11.94571865]
[1773053765347,0.4982452,83.737,83.713,0.47385525]
[1773053765952,0.4982452,83.735,83.713,0.47385525]
[1773053766726,4.87063754,83.76,83.721,0.47370222]
[1773053766727,0.4982452,83.745,83.721,0.47370222]
[1773053766948,0.4982452,83.745,83.72,4.3863144]
[1773053767252,0.4982452,83.739,83.713,0.47355094]
[1773053767945,0.4982452,83.739,83.717,12.41832992]
[1773053769951,11.94103539,83.745,83.716,0.47325357]
[1773053770253,0.4982452,83.744,83.716,0.47325357]
[1773053771944,0.4982452,83.742,83.716,12.41838006]
[1773053772666,11.94129658,83.743,83.671,0.4728202]
[1773053772667,0.4982452,83.729,83.671,0.4728202]
[1773053772957,0.4982452,83.709,83.671,0.4728202]
[1773053773144,0.4982452,83.715,83.691,0.47267905]
[1773053773844,0.4982452,83.715,83.681,0.47267905]
[1773053774046,0.4982452,83.709,83.682,11.95000119]
[1773053776158,0.4982452,83.707,83.668,0.47226525]
[1773053776453,0.28432314,83.729,83.681,0.47226525]
[1773053776454,0.4982452,83.706,83.681,0.47226525]
[1773053776847,4.3863144,83.72,83.691,0.47226525]
[1773053777039,0.4982452,83.719,83.691,0.47226525]
[1773053778358,0.4982452,83.717,83.692,11.94857334]
[1773053779448,0.4982452,83.709,83.692,11.94857334]
[1773053779648,0.4982452,83.709,83.684,0.47186555]
[1773053780967,0.4982452,83.707,83.68,4.3863144]
[1773053781152,0.4982452,83.707,83.67,4.85792108]
[1773053781355,0.4982452,83.699,83.67,4.85792108]
[1773053782349,0.4982452,83.698,83.671,11.95157222]
[1773053783688,0.4982452,83.689,83.667,11.95208499]
[1773053784000,0.4982452,83.689,83.654,29.88467385]
[1773053784201,0.4982452,83.689,83.655,0.47122941]
[1773053784378,41.81655202,83.699,83.645,3.69383402]
[1773053784379,0.4982452,83.699,83.67,4.3863144]
[1773053784580,0.4982452,83.699,83.671,0.47122941]
[1773053786898,0.4982452,83.697,83.672,11.95142939]
[1773053787089,0.4982452,83.697,83.673,0.47086499]
[1773053787307,0.4982452,83.689,83.661,0.47086499]
[1773053787811,0.4982452,83.669,83.643,12.42643808]
[1773053788189,0.4982452,83.669,83.644,0.4707463]
[1773053790506,0.4982452,83.669,83.645,11.95528722]
[1773053793133,0.28432314,83.7,83.628,11.95771751]
[1773053793134,0.46883088,83.659,83.628,11.95771751]
[1773053793418,0.46883088,83.649,83.628,11.95771751]
[1773053794423,4.67295725,83.68,83.641,0.48951848]
[1773053794424,4.38863411,83.68,83.641,0.48951848]
[1773053795017,11.95042961,83.679,83.643,0.48951848]
[1773053795622,11.95042961,83.679,83.65,4.87815259]
[1773053796133,11.94907407,83.689,83.651,0.48951848]
[1773053796437,11.94907407,83.689,83.65,4.38863411]
[1773053796438,0.5,83.68,83.66,4.87815259]
[1773053796799,0.46883088,83.679,83.652,0.48951848]
[1773053797023,0.46883088,83.669,83.633,0.48951848]
[1773053797212,0.46883088,83.669,83.64,4.38863411]
[1773053798427,0.46883088,83.667,83.64,16.34463602]
[1773053798797,0.46883088,83.667,83.641,0.48951848]
[1773053799812,0.46883088,83.667,83.64,46.2346408]
[1773053799813,0.46883088,83.674,83.651,0.48951848]
[1773053800330,0.46883088,83.674,83.652,41.84000381]
[1773053800640,0.46883088,83.674,83.653,0.48951848]
[1773053801431,0.46883088,83.689,83.661,0.48951848]
[1773053801620,0.46883088,83.689,83.67,4.38863411]
[1773053801823,0.46883088,83.689,83.671,0.48951848]
[1773053802023,0.46883088,83.698,83.671,0.48951848]
[1773053802234,29.8626287,83.717,83.652,41.84000381]
[1773053802235,0.46883088,83.709,83.68,4.87815259]
[1773053802526,0.28432314,83.72,83.67,4.38863411]
[1773053802527,0.46883088,83.699,83.67,4.38863411]
[1773053803209,0.46883088,83.699,83.672,0.48951848]
[1773053804225,0.46883088,83.709,83.681,0.48951848]
[1773053804528,0.46883088,83.709,83.683,0.48951848]
[1773053805526,0.46883088,83.716,83.691,0.48951848]
[1773053805702,0.45972699,83.723,83.691,0.48951848]
[1773053806525,0.45972699,83.723,83.693,0.49410255]
[1773053806723,0.45972699,83.731,83.71,4.38863411]
[1773053808128,0.45972699,83.729,83.693,0.49410255]
[1773053811118,0.45972699,83.719,83.694,11.94828781]
[1773053811728,0.45972699,83.719,83.69,11.94875331]
[1773053812830,0.45972699,83.719,83.691,0.49410255]
[1773053813838,0.45972699,83.732,83.701,0.49410255]
[1773053814016,0.45972699,83.739,83.71,4.88273666]
[1773053814218,0.45972699,83.739,83.711,0.49410255]
[1773053814832,0.45972699,83.739,83.712,11.94571865]
[1773053815033,0.45972699,83.749,83.721,0.49410255]
[1773053816153,0.45972699,83.747,83.722,11.94429182]
[1773053817608,0.45972699,83.747,83.718,11.94482388]
[1773053817822,11.94058365,83.748,83.714,0.49410255]
[1773053817823,0.45972699,83.739,83.715,11.94529056]
[1773053818015,0.45972699,83.739,83.71,4.38863411]
[1773053818222,0.45972699,83.729,83.701,11.94728856]
[1773053820724,0.45972699,83.727,83.701,11.94728856]
[1773053822540,0.45972699,83.741,83.711,0.49410255]
[1773053822729,0.45972699,83.741,83.713,0.49410255]
[1773053824239,0.47547762,83.729,83.7,0.45327252]
[1773053824421,4.38863411,83.74,83.711,0.45327252]
[1773053824625,0.47547762,83.749,83.711,0.45327252]
[1773053825038,0.47547762,83.749,83.721,0.45327252]
[1773053826442,0.47547762,83.747,83.72,11.94451663]
[1773053829643,4.86411173,83.74,83.716,30.31607471]
[1773053829823,4.86411173,83.74,83.717,0.45327252]
[1773053830139,0.47547762,83.74,83.717,0.45327252]
[1773053831637,0.47547762,83.739,83.715,11.94529056]
[1773053831839,4.38863411,83.74,83.71,4.84190663]
[1773053831840,0.47547762,83.737,83.711,12.39913387]
[1773053832833,0.47547762,83.737,83.712,0.45327252]
[1773053833827,0.47547762,83.737,83.713,12.39884847]
[1773053834044,0.47547762,83.737,83.714,0.45327252]
[1773053834726,11.94187495,83.739,83.714,0.45327252]
[1773053835046,12.41735257,83.739,83.714,0.45327252]
[1773053835346,0.47547762,83.738,83.714,0.45327252]
[1773053837338,0.47547762,83.736,83.714,0.45327252]
[1773053837540,0.47547762,83.736,83.709,11.9461197]
[1773053837846,0.47547762,83.736,83.71,4.84190663]
[1773053838150,0.47547762,83.736,83.711,0.45327252]
[1773053839860,4.38863411,83.74,83.711,0.45327252]
[1773053839861,0.47547762,83.734,83.712,11.94571865]
[1773053840230,0.47547762,83.734,83.713,0.45327252]
[1773053846646,0.47547762,83.734,83.683,59.74910225]
[1773053846647,0.47547762,83.756,83.721,0.45327252]
[1773053847050,0.47547762,83.753,83.721,0.45327252]
[1773053849853,0.47547762,83.751,83.723,0.45327252]
[1773053854041,0.47547762,83.751,83.699,59.73721636]
[1773053854042,0.47547762,83.751,83.731,0.48027598]
[1773053854236,11.93947112,83.756,83.731,0.48027598]
[1773053854559,0.46326338,83.755,83.731,0.48027598]
[1773053854754,0.2,83.76,83.731,0.48027598]
[1773053854958,0.2,83.76,83.741,0.48027598]
[1773053856039,0.2,83.76,83.752,12.42028935]
[1773053857251,0.2,83.76,83.742,29.85325174]
[1773053857252,0.2,83.76,83.748,11.94051916]
[1773053858540,1e-08,83.76,83.749,0.48027598]
[1773053859647,1e-08,83.76,83.75,11.9402985]
[1773053859957,1e-08,83.76,83.75,16.80335608]
[1773053860136,1e-08,83.76,83.751,0.48027598]
[1773053861259,0.2,83.77,83.751,0.48027598]
[1773053862060,0.2,83.77,83.752,11.94001337]
[1773053862250,0.66326338,83.77,83.753,0.48027598]
[1773053862449,0.46326338,83.768,83.74,4.3827816]
[1773053862647,0.46326338,83.759,83.735,11.94241098]
[1773053862962,0.46326338,83.759,83.736,0.48027598]
[1773053865963,0.46326338,83.759,83.738,0.48027598]
[1773053867466,0.46326338,83.759,83.732,11.94278454]
[1773053867651,0.4851612,83.749,83.732,11.94278454]
[1773053868042,0.4851612,83.748,83.731,12.40026159]
[1773053868248,0.4851612,83.748,83.731,0.45725363]
[1773053868963,0.4851612,83.753,83.74,4.3827816]
[1773053869170,0.4851612,83.768,83.741,0.45725363]
[1773053869551,0.4851612,83.768,83.74,4.3827816]
[1773053871974,0.4851612,83.766,83.74,16.32446069]
[1773053872265,0.4851612,83.766,83.74,4.3827816]
[1773053874172,0.4851612,83.764,83.741,0.45725363]
[1773053874376,11.93759027,83.769,83.751,0.45725363]
[1773053874674,0.4851612,83.768,83.751,0.45725363]
[1773053875470,0.2,83.77,83.751,0.45725363]
[1773053875770,0.4851612,83.779,83.761,0.45725363]
[1773053875970,0.2,83.78,83.761,0.45725363]
[1773053876178,11.93616538,83.779,83.761,0.45725363]
[1773053876470,0.2,83.78,83.762,11.9385879]
[1773053876678,0.2,83.78,83.762,12.39584153]
[1773053876865,4.5827816,83.78,83.762,12.39584153]
[1773053877564,5.0679428,83.78,83.762,12.39584153]
[1773053878072,5.0679428,83.78,83.763,0.45725363]
[1773053878569,4.5827816,83.79,83.764,0.45725363]
[1773053878774,0.2,83.79,83.764,0.45725363]
[1773053879676,0.2,83.79,83.766,0.45725363]
[1773053880370,0.2,83.79,83.771,0.45725363]
[1773053881155,0.4851612,83.789,83.771,0.45725363]
[1773053882478,0.4851612,83.789,83.772,11.93716277]
[1773053884681,8.05699938,83.799,83.781,0.48409257]
[1773053885760,8.05699938,83.799,83.782,11.93573798]
[1773053885975,8.05699938,83.799,83.783,0.48409257]
[1773053891274,8.05699938,83.799,83.78,4.3827816]
[1773053891275,8.05699938,83.799,83.785,0.48409257]
[1773053893381,8.05699938,83.799,83.783,11.93557]
[1773053893382,8.05699938,83.799,83.787,0.48409257]
[1773053894189,0.45710326,83.798,83.78,4.3827816]
[1773053894878,8.05699938,83.799,83.75,4.3827816]
[1773053894879,0.45710326,83.789,83.75,4.3827816]
[1773053895074,4.3827816,83.77,83.74,4.3827816]
[1773053895275,0.45710326,83.773,83.74,4.3827816]
[1773053895685,0.45710326,83.769,83.74,4.3827816]
[1773053896292,0.45710326,83.769,83.741,0.44800666]
[1773053896789,0.45710326,83.769,83.743,0.44800666]
[1773053897191,0.45710326,83.776,83.743,0.44800666]
[1773053899092,0.45710326,83.776,83.745,0.44791342]
[1773053899298,0.45710326,83.776,83.751,0.44791342]
[1773053900395,0.45710326,83.774,83.751,0.44791342]
[1773053900778,0.45710326,83.774,83.75,4.3827816]
[1773053900779,0.45710326,83.774,83.745,0.44788305]
[1773053902092,0.45710326,83.774,83.747,0.44782336]
[1773053902501,0.45710326,83.769,83.746,11.94086881]
[1773053903202,0.45710326,83.769,83.746,12.38866284]
[1773053904197,0.45710326,83.769,83.746,11.94086881]
[1773053905199,0.45710326,83.774,83.747,0.44773637]
[1773053905895,0.45710326,83.769,83.747,0.44773637]
[1773053906101,0.45710326,83.779,83.751,0.44770804]
[1773053907692,0.45710326,83.779,83.753,0.44768003]
[1773053908999,0.45710326,83.777,83.753,0.44768003]
[1773053909585,0.45710326,83.775,83.747,0.44762498]
[1773053909782,4.38020269,83.78,83.751,0.44762498]
[1773053909783,0.45710326,83.779,83.751,0.44762498]
[1773053910800,12.39261755,83.784,83.761,0.44759793]
[1773053910999,0.45710326,83.783,83.761,0.44759793]
[1773053914600,0.45710326,83.783,83.762,11.9385879]
[1773053917416,0.45710326,83.783,83.764,11.93830285]
[1773053919422,0.45710326,83.783,83.765,0.4473439]
[1773053920221,0.45710326,83.783,83.764,11.93830285]
[1773053923103,0.49567969,83.782,83.764,11.93830285]
[1773053923319,0.49567969,83.782,83.761,0.44732008]
[1773053923616,0.49567969,83.782,83.759,11.93887512]
[1773053924122,0.49567969,83.782,83.759,0.44722748]
[1773053925726,0.48567658,83.779,83.759,0.44722748]
[1773053926426,0.48567658,83.777,83.751,11.94015593]
[1773053927013,0.48567658,83.777,83.752,0.44713907]
[1773053929027,0.48567658,83.777,83.754,0.44709637]
[1773053931728,0.48567658,83.775,83.755,11.93958569]
[1773053933125,0.48567658,83.773,83.755,11.93958569]
[1773053933517,0.48567658,83.773,83.749,0.44701388]
[1773053933703,0.48567658,83.773,83.742,11.94143918]
[1773053933704,0.48567658,83.773,83.743,0.44701388]
[1773053934131,0.48567658,83.769,83.743,0.44701388]
[1773053937416,0.48567658,83.779,83.751,0.44693511]
[1773053937622,0.48567658,83.779,83.761,0.44693511]
[1773053938530,0.48567658,83.779,83.761,12.38564641]
[1773053938718,0.48567658,83.787,83.762,0.44691598]
[1773053938913,0.48567658,83.794,83.771,0.44689707]
[1773053939119,0.48567658,83.799,83.771,0.44689707]
[1773053941916,0.48567658,83.799,83.773,0.4468599]
[1773053942322,0.48567658,83.797,83.773,0.4468599]
[1773053944235,0.2,83.8,83.781,0.44678808]
[1773053944425,0.2,83.8,83.784,0.44678808]
[1773053945633,0.49596428,83.799,83.77,11.93743746]
[1773053945826,0.49596428,83.799,83.77,46.16125958]
[1773053946135,0.49596428,83.799,83.771,0.4467534]
[1773053946332,0.49596428,83.799,83.773,0.4467534]
[1773053947041,0.49596428,83.799,83.781,0.44673636]
[1773053947228,0.2,83.8,83.781,0.44673636]
[1773053948226,0.2,83.8,83.783,0.44671951]
[1773053948633,0.2,83.81,83.792,0.49312899]
[1773053950632,0.69596428,83.81,83.793,11.93417111]
[1773053951644,0.49596428,83.809,83.794,0.49312899]
[1773053953634,0.49596428,83.809,83.795,11.93388627]
[1773053954545,0.49596428,83.809,83.794,0.49312899]
[1773053954726,0.49596428,83.809,83.791,11.93439276]
[1773053956236,0.49596428,83.799,83.776,0.49312899]
[1773053956441,0.49596428,83.799,83.773,11.93702028]
[1773053956853,0.49596428,83.798,83.773,12.43014927]
[1773053957653,0.49596428,83.798,83.774,0.49312899]
[1773053958649,0.49596428,83.798,83.776,0.49312899]
[1773053962035,0.49596428,83.798,83.777,12.42957932]
[1773053962229,0.49596428,83.798,83.778,0.49312899]
[1773053964756,0.49596428,83.798,83.779,12.42929437]
[1773053965048,0.49596428,83.798,83.78,0.49312899]
[1773053965750,0.49596428,83.809,83.781,0.49312899]
[1773053966348,0.49596428,83.808,83.781,0.49312899]
[1773053967952,0.49596428,83.808,83.783,0.49312899]
[1773053970043,0.49596428,83.808,83.785,0.49312899]
[1773053971461,0.49596428,83.808,83.784,11.93545306]
[1773053972353,0.49596428,83.806,83.784,0.49312899]
[1773053974753,0.45555255,83.804,83.781,11.93588045]
[1773053975059,0.45555255,83.804,83.777,11.93639172]
[1773053975755,0.45555255,83.804,83.777,12.41405039]
[1773053976054,0.45555255,83.804,83.778,0.47765867]
[1773053976256,0.45555255,83.799,83.772,0.47765867]
[1773053976459,0.45555255,83.799,83.771,11.93730527]
[1773053976761,0.45555255,83.799,83.771,12.41496394]
[1773053976948,0.45555255,83.797,83.772,0.47765867]
[1773053977638,0.45555255,83.797,83.767,0.47765867]
[1773053977839,0.45555255,83.797,83.771,0.47765867]
[1773053979267,0.45555255,83.789,83.77,11.93738261]
[1773053981161,0.45555255,83.789,83.772,11.93716277]
[1773053981466,0.45555255,83.789,83.772,12.41482144]
[1773053983154,0.45555255,83.789,83.773,0.47765867]
[1773053983569,0.45555255,83.794,83.773,0.47765867]
[1773053984667,0.45555255,83.792,83.773,0.47765867]
[1773053984858,0.45555255,83.789,83.761,11.93873043]
[1773053985574,0.45555255,83.787,83.756,29.84830891]
[1773053985954,0.45555255,83.787,83.76,4.37684059]
[1773053986973,0.45555255,83.787,83.763,0.47138616]
[1773053987563,0.45239748,83.785,83.763,0.47138616]
[1773053990279,0.45239748,83.783,83.763,0.47138616]
[1773053992981,0.45239748,83.781,83.762,11.9385879]
[1773053993584,11.93573798,83.782,83.75,4.37684059]
[1773053993585,0.45239748,83.779,83.752,0.47138616]
[1773053993783,0.45239748,83.779,83.738,29.85476573]
[1773053993784,0.45239748,83.779,83.749,0.47138616]
[1773053994983,0.45239748,83.779,83.751,0.47138616]
[1773053995385,0.45239748,83.778,83.753,0.47138616]
[1773053997690,0.45239748,83.778,83.754,11.93972825]
[1773053998989,0.45239748,83.778,83.724,3.69383402]
[1773053998990,0.45239748,83.769,83.741,11.94158178]
[1773053999369,0.45239748,83.769,83.741,12.41296794]
[1773053999566,0.45239748,83.769,83.742,0.47138616]
[1773054000192,4.82923807,83.76,83.743,11.94129658]
[1773054000391,59.66772072,83.798,83.743,11.94129658]
[1773054000392,4.37684059,83.78,83.751,0.47138616]
[1773054000688,4.37684059,83.77,83.744,0.47138616]
[1773054001280,4.37684059,83.78,83.744,0.47138616]
[1773054001492,4.37684059,83.75,83.733,0.47138616]
[1773054001674,4.37684059,83.75,83.721,0.47138616]
[1773054001878,4.37684059,83.73,83.709,0.47138616]
[1773054002288,0.45239748,83.729,83.699,0.47138616]
[1773054002500,0.45239748,83.739,83.701,0.47138616]
[1773054002797,4.37684059,83.73,83.701,0.47138616]
[1773054003174,4.37684059,83.73,83.698,41.81700876]
[1773054003175,0.47982246,83.739,83.711,0.47858204]
[1773054003391,0.47982246,83.745,83.711,0.47858204]
[1773054003577,4.37684059,83.75,83.721,0.47858204]
[1773054003779,0.47982246,83.77,83.741,0.47858204]
[1773054004496,0.47982246,83.786,83.751,0.47858204]
[1773054006605,0.47982246,83.784,83.753,0.47858204]
[1773054007493,0.47982246,83.784,83.761,0.47858204]
[1773054007803,0.47982246,83.796,83.761,0.47858204]
[1773054008299,0.47982246,83.789,83.753,0.47858204]
[1773054008686,0.47982246,83.787,83.755,0.47858204]
[1773054009307,0.47982246,83.779,83.754,11.93972825]
[1773054009618,0.47982246,83.779,83.755,0.47858204]
[1773054010908,29.83363856,83.799,83.722,0.28432314]
[1773054010909,0.47982246,83.787,83.761,0.47858204]
[1773054012216,0.48432314,83.81,83.771,0.47858204]
[1773054012217,0.47982246,83.794,83.771,0.47858204]
[1773054012918,0.47982246,83.792,83.769,11.93750909]
[1773054013296,4.37684059,83.79,83.769,11.93750909]
[1773054013621,0.47982246,83.789,83.769,11.93750909]
[1773054014819,0.47982246,83.795,83.77,0.47858204]
[1773054015610,0.47982246,83.795,83.771,11.93730527]
[1773054015998,0.47982246,83.793,83.771,12.41588731]
[1773054017421,0.47982246,83.793,83.767,11.93785672]
[1773054017722,0.47982246,83.791,83.768,0.47858204]
[1773054019817,0.47982246,83.796,83.77,0.47858204]
[1773054020038,0.47982246,83.796,83.771,0.47858204]
[1773054023929,11.93331662,83.799,83.773,0.47858204]
[1773054024538,0.47982246,83.798,83.773,0.47858204]
[1773054026438,4.57684059,83.81,83.75,4.37684059]
[1773054026439,0.47982246,83.789,83.75,4.37684059]
[1773054026738,0.47982246,83.789,83.751,0.47858204]
[1773054027335,0.47982246,83.779,83.741,0.47858204]
[1773054027630,0.47982246,83.769,83.741,0.47858204]
[1773054028420,0.47982246,83.779,83.743,0.47858204]
[1773054028914,0.47982246,83.779,83.75,4.37684059]
[1773054029107,0.47982246,83.779,83.751,0.47858204]
[1773054030327,0.47982246,83.777,83.751,0.47858204]
[1773054030526,0.47982246,83.777,83.745,0.47858204]
[1773054030927,0.47982246,83.777,83.751,0.47858204]
[1773054031308,0.47982246,83.785,83.751,0.47858204]
[1773054032429,11.93527347,83.786,83.75,4.37951601]
[1773054032430,11.93545306,83.784,83.752,11.94001337]
[1773054032733,0.47982246,83.779,83.753,0.47858204]
[1773054033734,0.46344256,83.769,83.732,0.45487258]
[1773054034037,0.46344256,83.769,83.734,0.45487258]
[1773054036623,0.46344256,83.759,83.735,11.94243745]
[1773054037136,0.46344256,83.739,83.705,0.45487258]
[1773054037337,0.46344256,83.729,83.705,0.45487258]
[1773054038440,0.46344256,83.719,83.693,0.45487258]
[1773054038638,0.46344256,83.719,83.69,0.1]
[1773054038639,0.46344256,83.709,83.69,0.1]
[1773054039137,0.46344256,83.715,83.692,11.94852097]
[1773054039838,0.46344256,83.715,83.693,0.45487258]
[1773054040741,0.46344256,83.73,83.693,0.45487258]
[1773054040943,0.46344256,83.719,83.693,0.45487258]
[1773054041818,0.46344256,83.709,83.69,0.1]
[1773054042034,0.28432314,83.73,83.69,0.1]
[1773054042035,0.46344256,83.699,83.69,0.1]
[1773054042229,0.46344256,83.709,83.69,0.1]
[1773054042639,0.46344256,83.732,83.701,0.45487258]
[1773054042841,4.37951601,83.73,83.701,0.45487258]
[1773054043141,4.84295857,83.73,83.701,0.45487258]
[1773054045131,0.46344256,83.728,83.703,0.45487258]
[1773054047841,4.37951601,83.72,83.697,11.94776888]
[1773054048143,0.45086745,83.719,83.698,0.45795866]
[1773054048360,11.94357853,83.727,83.701,0.45795866]
[1773054048650,0.45086745,83.726,83.701,0.45795866]
[1773054050531,0.45086745,83.726,83.703,0.45795866]
[1773054050731,0.45086745,83.719,83.692,11.94857334]
[1773054051043,0.45086745,83.719,83.693,0.45795866]
[1773054051246,11.94386383,83.725,83.693,0.45795866]
[1773054051429,4.37951601,83.72,83.693,0.45795866]
[1773054051742,4.83038346,83.72,83.693,0.45795866]
[1773054051946,0.45086745,83.72,83.693,0.45795866]
[1773054053334,0.45086745,83.718,83.695,0.45795866]
[1773054053736,0.45086745,83.718,83.69,4.47951601]
[1773054053931,0.45086745,83.718,83.692,0.45795866]
[1773054054439,4.37951601,83.72,83.692,0.45795866]
[1773054054647,47.74201864,83.784,83.701,0.45795866]
[1773054054648,11.94275561,83.733,83.701,0.45795866]
[1773054054950,12.39362306,83.733,83.701,0.45795866]
[1773054055146,0.45086745,83.739,83.711,0.45795866]
[1773054055348,0.45086745,83.739,83.692,0.28432314]
[1773054055349,11.93759027,83.769,83.731,0.45795866]
[1773054055652,0.45086745,83.768,83.741,0.45795866]
[1773054056642,11.93645033,83.777,83.741,0.45795866]
[1773054056843,0.45086745,83.776,83.751,0.45795866]
[1773054057232,0.45086745,83.774,83.742,11.94143918]
[1773054057437,11.9367353,83.775,83.742,12.39939784]
[1773054057438,0.45086745,83.769,83.742,12.39939784]
[1773054057662,0.45086745,83.769,83.743,0.45795866]
[1773054058862,11.9367353,83.775,83.743,0.45795866]
[1773054059038,0.45086745,83.774,83.743,0.45795866]
[1773054060866,0.45086745,83.772,83.745,0.45795866]
[1773054062860,0.45086745,83.772,83.747,0.45795866]
[1773054063040,0.45357884,83.769,83.738,0.48692311]
[1773054063638,0.45357884,83.769,83.741,0.48692311]
[1773054064234,0.45357884,83.767,83.739,11.94186699]
[1773054064660,0.45357884,83.767,83.741,0.48692311]
[1773054064964,0.45357884,83.774,83.741,0.48692311]
[1773054065465,11.93616538,83.779,83.741,0.48692311]
[1773054065641,0.45357884,83.778,83.741,0.48692311]
[1773054066446,0.45357884,83.776,83.743,0.48692311]
[1773054068653,4.37951601,83.78,83.743,0.48692311]
[1773054068654,0.45357884,83.774,83.743,0.48692311]
[1773054068856,0.45357884,83.769,83.743,0.48692311]
[1773054070053,0.45357884,83.767,83.742,11.94143918]
[1773054070246,0.45357884,83.767,83.743,0.48692311]
[1773054070659,11.93773278,83.768,83.743,0.48692311]
[1773054070842,12.39131162,83.768,83.743,0.48692311]
[1773054072151,0.45357884,83.767,83.738,11.94188147]
[1773054072957,0.45357884,83.759,83.73,16.3225668]
[1773054073166,0.45357884,83.749,83.72,4.37951601]
[1773054073460,0.45357884,83.749,83.721,0.48692311]
[1773054073653,0.45357884,83.759,83.721,0.48692311]
[1773054074967,0.45357884,83.757,83.723,0.48692311]
[1773054076952,12.39302198,83.756,83.725,0.48692311]
[1773054077155,0.45357884,83.755,83.725,0.48692311]
[1773054078775,4.37951601,83.76,83.727,0.48692311]
[1773054078776,0.45357884,83.753,83.727,0.48692311]
[1773054079478,11.93922038,83.758,83.727,0.48692311]
[1773054079776,12.39180356,83.765,83.731,0.48692311]
[1773054079982,0.45357884,83.764,83.731,0.48692311]
[1773054080882,4.37951601,83.76,83.733,0.48692311]
[1773054081074,0.45357884,83.759,83.733,0.48692311]
[1773054083477,0.45357884,83.765,83.735,0.48692311]
[1773054083683,11.93759027,83.769,83.734,11.94258007]
[1773054083684,11.93759027,83.769,83.741,0.48692311]
[1773054085363,11.93759027,83.769,83.72,4.37951601]
[1773054085364,0.45357884,83.789,83.761,0.48692311]
[1773054086362,11.93466339,83.79,83.771,0.48692311]
[1773054086559,11.934027,83.795,83.771,0.48692311]
[1773054086772,0.45357884,83.796,83.771,0.48692311]
[1773054087605,0.45357884,83.802,83.773,0.48692311]
[1773054088079,0.45357884,83.799,83.773,0.48692311]
[1773054088469,0.45357884,83.799,83.768,0.48692311]
[1773054089485,0.45357884,83.799,83.771,0.48692311]
[1773054089882,0.45357884,83.797,83.771,0.48692311]
[1773054090866,0.45357884,83.797,83.773,0.48692311]
[1773054091073,11.93297488,83.802,83.773,0.48692311]
[1773054091271,0.45357884,83.801,83.773,0.48692311]
[1773054091788,0.45357884,83.799,83.773,0.48692311]
[1773054093684,0.45357884,83.799,83.77,4.37951601]
[1773054093685,11.93345903,83.798,83.775,0.49022606]
[1773054093866,12.41596023,83.798,83.775,0.49022606]
[1773054094477,0.4825012,83.797,83.775,0.49022606]
[1773054094684,0.4825012,83.797,83.769,0.49022606]
[1773054095586,0.4825012,83.797,83.771,0.49022606]
[1773054095774,12.41624505,83.796,83.773,0.49022606]
[1773054095973,11.93316037,83.801,83.773,0.49022606]
[1773054096170,11.93316037,83.801,83.77,4.37783287]
[1773054096171,0.4825012,83.799,83.77,4.37783287]
[1773054096367,0.4825012,83.799,83.768,11.93763246]
[1773054096567,0.4825012,83.789,83.766,11.9379436]
[1773054096774,0.4825012,83.789,83.762,0.49022606]
[1773054096973,0.4825012,83.779,83.751,0.49022606]
[1773054097791,0.4825012,83.779,83.752,0.49022606]
[1773054099087,0.4825012,83.785,83.752,0.49022606]
[1773054099271,0.4825012,83.789,83.761,0.49022606]
[1773054099888,11.93488327,83.788,83.762,11.9385879]
[1773054100091,0.4825012,83.789,83.763,0.49022606]
[1773054100589,0.2,83.82,83.762,11.9385879]
[1773054100590,11.93259453,83.805,83.771,0.49022606]
[1773054100771,34.40730953,83.81,83.762,41.78505765]
[1773054100772,0.2,83.81,83.781,0.49022606]
[1773054100972,12.13176778,83.81,83.781,0.49022606]